bitfinex-derivatives/quotes_BTCF0:USTF0_20241015
["timestamp","ask_amount","ask_price","bid_price","bid_amount"]
[1729015807019,0.074613,67022.0,67021.0,0.005]
[1729015807316,0.132713,67022.0,67021.0,0.005]
[1729015807708,0.074615,67020.0,67019.0,0.1033233]
[1729015807909,0.074615,67020.0,67019.0,0.1779393]
[1729015808716,0.53156,67023.0,67019.0,0.1033233]
[1729015808917,0.3608,67023.0,67022.0,0.074613]
[1729015809119,0.0573,67036.0,67022.0,0.17]
[1729015809316,0.3608,67037.0,67022.0,0.17]
[1729015809317,0.3608,67037.0,67032.0,0.3608]
[1729015809509,0.3608,67037.0,67034.0,0.0746]
[1729015809713,0.435397,67037.0,67034.0,0.0746]
[1729015809925,0.17,67036.0,67032.0,0.3608]
[1729015810221,0.244601,67033.0,67023.0,0.0587]
[1729015810422,0.074609,67027.0,67026.0,0.074608]
[1729015810625,0.3608,67034.0,67023.0,0.0587]
[1729015810815,0.074611,67024.0,67023.0,0.133312]
[1729015811021,0.17,67024.0,67023.0,0.33690129]
[1729015811219,0.605411,67024.0,67023.0,0.20358929]
[1729015811412,0.605411,67024.0,67023.0,0.09287995]
[1729015811812,0.695411,67024.0,67023.0,0.09287995]
[1729015812016,0.695411,67024.0,67023.0,0.16669087]
[1729015812224,0.695411,67024.0,67023.0,0.07381092]
[1729015812422,0.695411,67024.0,67023.0,0.07581092]
[1729015813010,0.0571,67027.0,67023.0,0.09506976]
[1729015813215,0.074607,67028.0,67027.0,0.074607]
[1729015813410,0.074607,67028.0,67027.0,0.16767676]
[1729015813621,0.074601,67033.0,67032.0,0.074602]
[1729015813827,0.074601,67033.0,67032.0,0.16767176]
[1729015814517,0.334601,67033.0,67032.0,0.16767176]
[1729015815026,0.334601,67033.0,67032.0,0.09306976]
[1729015815220,0.335601,67033.0,67032.0,0.16867176]
[1729015816220,0.335601,67033.0,67032.0,0.075602]
[1729015816425,0.335601,67033.0,67032.0,0.001]
[1729015818021,0.335601,67033.0,67032.0,0.075602]
[1729015818424,0.335601,67033.0,67032.0,0.001]
[1729015819429,0.001,67033.0,67032.0,0.075602]
[1729015819633,0.075601,67033.0,67032.0,0.13461187]
[1729015819822,0.075601,67033.0,67032.0,0.13460071]
[1729015820534,0.075601,67033.0,67032.0,0.13459486]
[1729015820725,0.074601,67033.0,67032.0,0.075602]
[1729015820925,0.074601,67033.0,67032.0,0.13359637]
[1729015821230,0.074601,67033.0,67032.0,0.074602]
[1729015821618,0.074601,67033.0,67032.0,0.075602]
[1729015823142,0.07683743,67035.0,67034.0,0.0746]
[1729015823629,0.074591,67045.0,67044.0,0.074585]
[1729015823928,0.074591,67045.0,67044.0,0.435385]
[1729015824231,0.074585,67048.0,67047.0,0.074584]
[1729015824429,0.074585,67048.0,67047.0,0.16591133]
[1729015825432,0.074585,67048.0,67047.0,0.16691133]
[1729015826034,0.074585,67048.0,67047.0,0.24053738]
[1729015826035,0.075585,67048.0,67047.0,0.24053738]
[1729015826831,0.075585,67048.0,67047.0,0.14921005]
[1729015827145,0.075585,67048.0,67047.0,0.075584]
[1729015827436,0.074585,67048.0,67047.0,0.14921005]
[1729015827639,0.074585,67048.0,67047.0,0.16670491]
[1729015828141,0.074585,67048.0,67047.0,0.16570491]
[1729015828431,0.074585,67048.0,67047.0,0.16770491]
[1729015828840,0.074585,67048.0,67047.0,0.16749665]
[1729015829024,0.074585,67048.0,67047.0,0.16549665]
[1729015829224,0.074585,67048.0,67047.0,0.076584]
[1729015830535,0.074585,67048.0,67047.0,0.002]
[1729015830727,0.074589,67044.0,67041.0,0.05886105]
[1729015830925,0.074592,67041.0,67040.0,0.05886105]
[1729015831129,0.074593,67040.0,67039.0,0.05886105]
[1729015831333,0.074594,67039.0,67038.0,0.074595]
[1729015831536,0.135494,67039.0,67038.0,0.074595]
[1729015832841,0.074585,67048.0,67038.0,0.074595]
[1729015832842,0.26,67052.0,67038.0,0.075595]
[1729015833035,0.074584,67049.0,67048.0,0.074584]
[1729015834937,0.074584,67049.0,67048.0,0.075584]
[1729015835445,0.074584,67049.0,67048.0,0.074584]
[1729015835639,0.074584,67049.0,67048.0,0.075584]
[1729015839639,0.074584,67049.0,67048.0,0.076584]
[1729015842734,0.074584,67049.0,67048.0,0.074584]
[1729015842935,0.074584,67049.0,67048.0,0.076584]
[1729015843136,0.074584,67049.0,67048.0,0.24134243]
[1729015843342,0.074584,67049.0,67048.0,0.15013764]
[1729015843544,0.074584,67049.0,67048.0,0.076584]
[1729015844147,0.074584,67049.0,67048.0,0.07555364]
[1729015844339,0.074584,67049.0,67048.0,0.16676258]
[1729015844545,0.074584,67049.0,67045.0,0.07362911]
[1729015844546,0.074586,67046.0,67045.0,0.07362911]
[1729015844736,0.5308,67046.0,67039.0,0.074593]
[1729015844937,0.244593,67040.0,67039.0,0.074593]
[1729015845137,0.244593,67040.0,67039.0,0.16617905]
[1729015845341,0.244593,67040.0,67039.0,0.074593]
[1729015846138,0.244593,67040.0,67039.0,0.17258612]
[1729015846349,0.244593,67040.0,67039.0,0.081593]
[1729015847738,0.244593,67040.0,67039.0,0.079593]
[1729015848353,0.27167746,67040.0,67039.0,0.079593]
[1729015848646,0.27167746,67040.0,67039.0,0.004]
[1729015848858,0.27167746,67040.0,67031.0,0.05892987]
[1729015848859,1.60536446,67040.0,67031.0,0.05892987]
[1729015849041,0.074603,67031.0,67030.0,0.00223732]
[1729015849350,0.074614,67021.0,67020.0,0.074615]
[1729015849740,0.244614,67021.0,67020.0,0.074615]
[1729015850942,0.074619,67017.0,67016.0,0.074619]
[1729015851143,0.244619,67017.0,67016.0,0.074619]
[1729015851751,0.244619,67017.0,67016.0,0.04421481]
[1729015851948,0.07462,67016.0,67015.0,0.3608]
[1729015852149,0.074626,67010.0,67007.0,0.40501481]
[1729015852457,0.244629,67008.0,67007.0,0.3608]
[1729015853346,0.3608,67014.0,67011.0,0.074625]
[1729015853347,0.244624,67012.0,67011.0,0.074625]
[1729015853541,0.02799201,67017.0,67011.0,0.09199489]
[1729015853542,0.001,67017.0,67011.0,0.09199489]
[1729015853742,0.17,67029.0,67007.0,0.81003801]
[1729015853743,0.074613,67023.0,67016.0,0.5308]
[1729015853943,0.074613,67023.0,67022.0,0.244613]
[1729015854253,0.074613,67023.0,67022.0,0.074613]
[1729015854449,0.074613,67023.0,67022.0,0.1655712]
[1729015854651,0.074613,67023.0,67022.0,0.074613]
[1729015855663,0.077613,67023.0,67022.0,0.074613]
[1729015855856,0.077613,67023.0,67016.0,0.44923801]
[1729015855857,0.074619,67017.0,67016.0,0.52385701]
[1729015856153,0.074619,67017.0,67016.0,0.52649783]
[1729015857657,0.074616,67021.0,67020.0,0.074614]
[1729015858758,0.074616,67021.0,67020.0,0.16567436]
[1729015858960,0.074616,67021.0,67020.0,0.077614]
[1729015859656,0.074616,67021.0,67020.0,0.079614]
[1729015859952,0.26,67032.0,67020.0,0.45685913]
[1729015860161,0.435401,67034.0,67033.0,0.074601]
[1729015860452,0.3608,67034.0,67028.0,0.3608]
[1729015860667,0.074605,67030.0,67029.0,0.074604]
[1729015861460,0.074605,67029.0,67028.0,0.3608]
[1729015861955,0.007,67034.0,67033.0,0.074601]
[1729015862168,0.00223834,67035.0,67034.0,0.0746]
[1729015862456,0.26,67048.0,67035.0,0.074598]
[1729015862654,0.074589,67044.0,67043.0,0.074587]
[1729015862854,0.074589,67044.0,67043.0,0.435387]
[1729015863256,0.334587,67048.0,67047.0,0.074585]
[1729015863558,0.334587,67048.0,67043.0,0.3608]
[1729015863559,0.074589,67044.0,67043.0,0.43539]
[1729015864350,0.26,67048.0,67047.0,0.074585]
[1729015864553,0.074574,67057.0,67056.0,0.074573]
[1729015864851,0.26,67066.0,67059.0,0.074571]
[1729015865048,0.26,67066.0,67061.0,0.04401218]
[1729015865049,0.07680693,67062.0,67061.0,0.04401218]
[1729015865244,0.07457,67061.0,67060.0,0.04401233]
[1729015865451,0.074574,67057.0,67056.0,0.04401233]
[1729015865643,0.268,67057.0,67056.0,0.04501233]
[1729015865851,0.342574,67057.0,67056.0,0.04501233]
[1729015866245,0.334574,67057.0,67056.0,0.04401233]
[1729015866448,0.074572,67060.0,67059.0,0.074571]
[1729015866647,0.03684416,67062.0,67057.0,0.04401233]
[1729015866854,0.074574,67057.0,67056.0,0.47938733]
[1729015867150,0.334574,67057.0,67056.0,0.47938733]
[1729015867355,0.341574,67057.0,67056.0,0.40581233]
[1729015867555,0.702374,67057.0,67056.0,0.001]
[1729015867746,0.702374,67057.0,67051.0,0.04401233]
[1729015867747,1.302374,67057.0,67051.0,0.04401233]
[1729015867949,1.302374,67057.0,67047.0,0.41948291]
[1729015867950,0.26,67053.0,67047.0,0.3608]
[1729015868147,0.3758,67057.0,67056.0,0.074575]
[1729015868148,0.015,67057.0,67056.0,0.074575]
[1729015868347,0.015,67057.0,67056.0,0.73936403]
[1729015868544,0.015,67057.0,67056.0,1.35405791]
[1729015868759,0.015,67057.0,67056.0,0.75405791]
[1729015868957,0.00223793,67062.0,67056.0,0.75405791]
[1729015868958,0.00223793,67062.0,67061.0,0.07457]
[1729015869755,0.00223793,67062.0,67061.0,0.33457]
[1729015870251,0.00223793,67062.0,67061.0,0.07457]
[1729015870457,0.00223793,67062.0,67061.0,0.13312891]
[1729015870655,0.01023793,67062.0,67061.0,0.13412891]
[1729015871161,0.01023793,67062.0,67061.0,0.07557]
[1729015871653,0.01023793,67062.0,67061.0,0.07657]
[1729015871654,0.08480693,67062.0,67061.0,0.07657]
[1729015872145,0.08480693,67062.0,67061.0,0.12039038]
[1729015872345,0.08480693,67062.0,67061.0,0.07657]
[1729015873260,0.08480693,67062.0,67061.0,0.002]
[1729015873463,0.34480693,67062.0,67061.0,0.002]
[1729015874366,0.1118765,67062.0,67061.0,0.002]
[1729015874564,0.01023793,67062.0,67061.0,0.33657]
[1729015875256,0.199456,67073.0,67061.0,0.78393]
[1729015875257,0.1249,67073.0,67061.0,0.78393]
[1729015875455,0.1249,67073.0,67066.0,0.3608]
[1729015875765,0.22671456,67073.0,67072.0,0.3608]
[1729015876861,0.22671456,67073.0,67062.0,0.04375823]
[1729015876862,0.074567,67064.0,67063.0,0.074567]
[1729015877164,0.22671456,67073.0,67061.0,0.015]
[1729015877165,0.074569,67062.0,67061.0,0.07557]
[1729015877357,0.334569,67062.0,67061.0,0.07557]
[1729015877860,0.334569,67062.0,67061.0,0.07457]
[1729015878264,0.334569,67062.0,67061.0,0.07557]
[1729015878560,0.334569,67062.0,67061.0,0.001]
[1729015879966,0.334569,67062.0,67061.0,0.002]
[1729015880965,0.334569,67062.0,67047.0,0.12290201]
[1729015880966,0.074581,67051.0,67047.0,0.04375823]
[1729015881162,1.40837816,67062.0,67044.0,0.04375823]
[1729015881163,0.074587,67045.0,67044.0,0.04375823]
[1729015881361,0.26,67048.0,67042.0,0.04375823]
[1729015881564,0.074591,67043.0,67042.0,0.11834923]
[1729015881869,0.074591,67043.0,67042.0,0.074591]
[1729015882055,0.26,67048.0,67042.0,0.074591]
[1729015882252,0.074591,67043.0,67042.0,0.074591]
[1729015882553,0.074592,67041.0,67040.0,0.04375823]
[1729015882758,0.074593,67040.0,67039.0,0.435393]
[1729015883056,0.334593,67040.0,67039.0,0.40461638]
[1729015883251,0.334593,67040.0,67036.0,0.04381809]
[1729015883252,0.26,67040.0,67036.0,0.04381809]
[1729015883456,0.26,67040.0,67034.0,0.074599]
[1729015883457,0.074599,67035.0,67034.0,0.074599]
[1729015883661,0.334599,67035.0,67034.0,0.074599]
[1729015883863,0.334599,67035.0,67034.0,0.11843343]
[1729015884061,0.334599,67035.0,67034.0,0.074599]
[1729015884863,0.26,67040.0,67031.0,0.3608]
[1729015885061,0.06,67049.0,67039.0,0.6208]
[1729015885264,0.3608,67065.0,67048.0,0.074583]
[1729015885460,0.0267065,67054.0,67052.0,0.3608]
[1729015885768,0.074578,67054.0,67053.0,0.074579]
[1729015887168,0.074576,67056.0,67055.0,0.074574]
[1729015887468,0.0894238,67060.0,67059.0,0.074572]
[1729015887469,0.1639958,67060.0,67059.0,0.074572]
[1729015887769,0.00223803,67062.0,67061.0,0.07457]
[1729015888170,0.07680703,67062.0,67061.0,0.07457]
[1729015889170,0.07680703,67062.0,67061.0,0.07557]
[1729015889761,0.00223803,67062.0,67061.0,0.07557]
[1729015890373,0.00323803,67062.0,67061.0,0.07657]
[1729015890766,0.07780703,67062.0,67061.0,0.07657]
[1729015892068,0.07780703,67062.0,67061.0,0.002]
[1729015895975,0.33780703,67062.0,67061.0,0.002]
[1729015899079,0.33780703,67062.0,67061.0,0.06050201]
[1729015899475,0.33780703,67062.0,67061.0,0.13507201]
[1729015899783,0.07780703,67062.0,67061.0,0.06071553]
[1729015900170,0.07780703,67062.0,67061.0,0.06072766]
[1729015900481,0.075569,67062.0,67061.0,0.06072766]
[1729015902271,0.075569,67062.0,67061.0,0.13529766]
[1729015902467,0.001,67062.0,67061.0,0.16540922]
[1729015902673,0.075569,67062.0,67061.0,0.16540922]
[1729015903281,0.07457,67061.0,67058.0,0.05877029]
[1729015903473,1.06816,67060.0,67052.0,0.05877029]
[1729015903782,1.06816,67060.0,67051.0,0.05877029]
[1729015903783,0.07458,67052.0,67051.0,0.05877029]
[1729015903980,0.33458,67052.0,67051.0,0.05877029]
[1729015904282,0.33458,67052.0,67050.0,0.05877029]
[1729015904283,0.39738,67052.0,67050.0,0.05877029]
[1729015904483,0.334581,67051.0,67050.0,0.05877029]
[1729015906086,0.26,67051.0,67046.0,0.074586]
[1729015906274,0.074585,67047.0,67046.0,0.074586]
[1729015906783,0.26,67047.0,67038.0,0.05877029]
[1729015906979,0.074597,67036.0,67035.0,0.36303771]
[1729015907377,0.074597,67036.0,67035.0,0.43763671]
[1729015908183,0.074597,67036.0,67035.0,0.36303771]
[1729015908387,0.074597,67036.0,67035.0,0.00223771]
[1729015908388,0.435397,67036.0,67035.0,0.00223771]
[1729015908681,0.882917,67036.0,67035.0,0.01323771]
[1729015908883,1.545617,67036.0,67035.0,0.011]
[1729015909078,0.074612,67023.0,67022.0,0.3608]
[1729015909280,0.334612,67023.0,67022.0,0.435413]
[1729015910085,0.334612,67023.0,67022.0,0.3608]
[1729015910677,0.074618,67019.0,67018.0,0.074617]
[1729015910882,0.334618,67019.0,67018.0,0.074617]
[1729015911785,0.26,67023.0,67018.0,0.074617]
[1729015912088,0.118,67028.0,67027.0,0.074606]
[1729015912089,0.074607,67028.0,67027.0,0.074606]
[1729015912886,0.3608,67029.0,67028.0,0.074606]
[1729015913184,0.074604,67031.0,67028.0,0.6208]
[1729015913379,0.074604,67031.0,67029.0,0.0632]
[1729015913684,0.074599,67035.0,67034.0,0.074599]
[1729015915086,0.074599,67035.0,67029.0,0.05877029]
[1729015915274,0.26,67030.0,67025.0,0.05877029]
[1729015915481,0.074609,67027.0,67026.0,0.074608]
[1729015916978,0.076609,67027.0,67026.0,0.074608]
[1729015918086,0.076609,67027.0,67026.0,0.435408]
[1729015918389,0.076609,67027.0,67026.0,0.436408]
[1729015919889,0.246609,67027.0,67026.0,0.436408]
[1729015921378,0.607409,67027.0,67026.0,0.001]
[1729015921574,0.246609,67027.0,67026.0,0.001]
[1729015921991,0.246609,67027.0,67026.0,0.436409]
[1729015921992,0.076609,67027.0,67026.0,0.436409]
[1729015922288,0.074601,67033.0,67026.0,1.484009]
[1729015922481,0.00223817,67037.0,67035.0,0.074599]
[1729015922482,0.074598,67036.0,67035.0,0.074599]
[1729015923592,0.002,67036.0,67035.0,0.001]
[1729015923793,0.076597,67036.0,67035.0,0.001]
[1729015923994,0.076597,67036.0,67035.0,0.075599]
[1729015925182,0.3608,67055.0,67042.0,0.074591]
[1729015925494,0.074564,67066.0,67055.0,0.074575]
[1729015925495,0.074577,67056.0,67055.0,0.074575]
[1729015926295,0.244577,67056.0,67055.0,0.074575]
[1729015926594,0.074577,67056.0,67055.0,0.074575]
[1729015927189,0.244577,67056.0,67055.0,0.001]
[1729015927389,0.252577,67056.0,67055.0,0.002]
[1729015927889,0.342577,67056.0,67055.0,0.002]
[1729015928083,0.082577,67056.0,67055.0,0.076576]
[1729015928391,0.008,67056.0,67055.0,0.076576]
[1729015928792,0.118,67072.0,67055.0,0.73534629]
[1729015928986,0.074559,67071.0,67064.0,0.435366]
[1729015929392,0.26,67069.0,67064.0,0.495566]
[1729015929694,0.074565,67066.0,67064.0,0.495566]
[1729015929889,0.07680272,67065.0,67064.0,0.435366]
[1729015930092,0.34480272,67065.0,67064.0,0.435366]
[1729015930494,0.01023772,67065.0,67064.0,0.435366]
[1729015930794,0.01023772,67065.0,67064.0,0.796166]
[1729015930985,0.074564,67069.0,67068.0,0.074562]
[1729015931495,0.074555,67075.0,67074.0,0.074553]
[1729015931999,0.074555,67075.0,67071.0,0.6208]
[1729015932000,0.0273954,67077.0,67076.0,0.074553]
[1729015932292,0.062,67090.0,67086.0,0.07454]
[1729015932492,0.062,67090.0,67073.0,0.3608]
[1729015932493,0.07454,67088.0,67087.0,0.074541]
[1729015932690,0.074543,67085.0,67084.0,0.3608]
[1729015932888,0.074551,67080.0,67079.0,0.074549]
[1729015933191,0.334551,67080.0,67079.0,0.074549]
[1729015933596,0.074551,67080.0,67079.0,0.074549]
[1729015934487,0.074553,67077.0,67076.0,0.07455]
[1729015936089,0.074553,67077.0,67076.0,0.07555]
[1729015936289,0.02677369,67080.0,67079.0,0.07455]
[1729015936502,0.074549,67080.0,67079.0,0.07455]
[1729015936800,0.074552,67077.0,67076.0,0.075553]
[1729015936996,0.074552,67077.0,67076.0,0.001]
[1729015938587,0.074553,67076.0,67075.0,0.074554]
[1729015940090,0.334553,67076.0,67075.0,0.074554]
[1729015940287,0.074555,67074.0,67073.0,0.3608]
[1729015940592,0.074572,67059.0,67058.0,0.3608]
[1729015940790,0.3608,67074.0,67054.0,0.435377]
[1729015940791,0.074573,67058.0,67054.0,0.435377]
[1729015940987,0.334573,67058.0,67048.0,0.074584]
[1729015941191,0.07459,67043.0,67042.0,0.07459]
[1729015941390,0.26,67043.0,67042.0,0.07459]
[1729015942493,0.26,67043.0,67042.0,0.07859]
[1729015942693,0.33459,67043.0,67042.0,0.08859]
[1729015943209,0.33459,67043.0,67042.0,0.08459]
[1729015944603,0.33459,67043.0,67042.0,0.07759]
[1729015945202,0.33859,67043.0,67042.0,0.07759]
[1729015945402,0.33859,67043.0,67042.0,0.07459]
[1729015946107,0.33859,67043.0,67027.0,0.14805337]
[1729015946108,0.71148,67043.0,67028.0,0.05877029]
[1729015946302,0.71148,67043.0,67035.0,0.00223766]
[1729015946303,0.334597,67036.0,67035.0,0.00223766]
[1729015946604,0.074609,67027.0,67026.0,0.074607]
[1729015946907,0.26,67030.0,67022.0,0.3608]
[1729015947216,0.0603,67035.0,67022.0,0.3608]
[1729015947217,0.334612,67023.0,67022.0,0.3608]
[1729015947504,0.334612,67023.0,67022.0,0.074613]
[1729015947911,0.074617,67019.0,67018.0,0.074617]
[1729015948098,0.334617,67019.0,67018.0,0.074617]
[1729015948607,0.074614,67022.0,67021.0,0.074613]
[1729015949204,0.10172431,67022.0,67021.0,0.074613]
[1729015950195,0.10172431,67022.0,67021.0,0.076613]
[1729015950605,0.10172431,67022.0,67021.0,0.002]
[1729015950813,0.10172431,67022.0,67021.0,0.076614]
[1729015951608,0.10172431,67022.0,67021.0,0.083614]
[1729015952697,0.10172431,67022.0,67021.0,0.009]
[1729015953601,0.72252431,67022.0,67021.0,0.009]
[1729015953898,0.51902431,67022.0,67021.0,0.009]
[1729015955410,0.46252431,67022.0,67021.0,0.009]
[1729015955603,0.26,67027.0,67021.0,0.009]
[1729015955800,0.074611,67024.0,67023.0,0.074609]
[1729015957701,0.074611,67024.0,67023.0,0.079609]
[1729015960114,0.0264404,67027.0,67023.0,0.440409]
[1729015960413,0.3608,67052.0,67026.0,0.3608]
[1729015960414,0.0564,67040.0,67026.0,0.3608]
[1729015960604,0.074599,67037.0,67036.0,0.074597]
[1729015961699,0.26,67038.0,67034.0,0.3608]
[1729015961904,0.074604,67033.0,67032.0,0.074601]
[1729015964111,0.074604,67033.0,67032.0,0.075601]
[1729015964612,0.338604,67033.0,67032.0,0.001]
[1729015965518,1.41344835,67033.0,67014.0,0.05877029]
[1729015965811,0.074621,67017.0,67016.0,0.074619]
[1729015966012,0.334621,67017.0,67016.0,0.074619]
[1729015967513,0.334621,67017.0,67016.0,0.086619]
[1729015968106,0.334621,67017.0,67016.0,0.093619]
[1729015968317,0.335621,67017.0,67016.0,0.093619]
[1729015969310,0.075621,67017.0,67016.0,0.093619]
[1729015969712,0.001,67017.0,67016.0,0.093619]
[1729015970205,0.001,67017.0,67016.0,0.25757604]
[1729015971028,0.075621,67017.0,67016.0,0.25757604]
[1729015971310,0.075621,67017.0,67016.0,0.18398692]
[1729015971517,0.335621,67017.0,67016.0,0.18398692]
[1729015973918,0.245621,67017.0,67016.0,0.18398692]
[1729015974313,0.245621,67017.0,67016.0,0.27216918]
[1729015975316,0.245621,67017.0,67016.0,0.18398692]
[1729015978327,0.3608,67025.0,67016.0,0.35398692]
[1729015978624,0.074613,67023.0,67022.0,0.074611]
[1729015978817,0.074613,67023.0,67022.0,0.16497892]
[1729015979813,0.17,67024.0,67022.0,0.16497892]
[1729015980012,0.17,67031.0,67024.0,0.074611]
[1729015980211,0.074602,67032.0,67031.0,0.074601]
[1729015980516,0.02645098,67037.0,67036.0,0.074597]
[1729015980713,0.244595,67039.0,67038.0,0.074595]
[1729015980918,0.0022383,67041.0,67040.0,0.074593]
[1729015981124,0.5308,67058.0,67040.0,0.613074]
[1729015981424,0.55796318,67058.0,67054.0,0.05885861]
[1729015981608,0.074574,67057.0,67056.0,0.05879924]
[1729015981808,0.55872318,67058.0,67055.0,0.05879924]
[1729015982011,0.074576,67055.0,67054.0,0.05879924]
[1729015982213,0.074577,67054.0,67053.0,0.074578]
[1729015983012,0.074581,67051.0,67049.0,0.074583]
[1729015983431,0.074582,67050.0,67049.0,0.074583]
[1729015984025,0.074582,67050.0,67049.0,0.10156075]
[1729015984722,0.074582,67050.0,67049.0,0.074583]
[1729015985224,0.00076,67074.0,67051.0,0.074581]
[1729015985424,0.0587,67079.0,67071.0,0.244559]
[1729015985815,0.074554,67076.0,67071.0,0.244559]
[1729015986015,0.0587,67079.0,67071.0,0.244559]
[1729015986236,0.1179,67080.0,67071.0,0.244559]
[1729015986718,0.07455,67079.0,67071.0,0.244559]
[1729015987022,0.1179,67080.0,67071.0,0.244559]
[1729015987320,0.074552,67077.0,67071.0,0.244559]
[1729015987522,0.074557,67073.0,67071.0,0.088559]
[1729015987717,0.074557,67072.0,67071.0,0.088559]
[1729015988025,0.074557,67072.0,67071.0,0.074559]
[1729015988622,0.02681658,67077.0,67071.0,0.074559]
[1729015988930,0.074556,67074.0,67071.0,0.074559]
[1729015989121,0.26,67078.0,67072.0,0.074557]
[1729015989322,0.334551,67078.0,67072.0,0.074557]
[1729015989817,0.26,67078.0,67074.0,0.074554]
[1729015990023,0.28627802,67078.0,67074.0,0.074554]
[1729015991229,0.3608,67075.0,67064.0,0.074566]
[1729015991420,0.26,67069.0,67058.0,0.3608]
[1729015991732,0.26,67066.0,67058.0,0.3608]
[1729015992039,0.26,67066.0,67065.0,0.074565]
[1729015992525,0.074565,67065.0,67064.0,0.001]
[1729015993031,0.074565,67065.0,67063.0,0.074567]
[1729015993422,0.074566,67064.0,67063.0,0.074567]
[1729015993633,0.26,67066.0,67058.0,0.3678]
[1729015993634,0.28653849,67066.0,67058.0,0.3678]
[1729015993823,0.074572,67059.0,67058.0,0.3678]
[1729015994427,0.132472,67059.0,67058.0,0.007]
[1729015994826,0.0579,67059.0,67052.0,0.3608]
[1729015995032,0.074573,67058.0,67052.0,0.3608]
[1729015995223,0.074573,67058.0,67052.0,0.43538]
[1729015995423,0.074577,67055.0,67052.0,0.43538]
[1729015995739,0.1162,67059.0,67052.0,0.43538]
[1729015995930,0.074579,67053.0,67052.0,0.43538]
[1729015996719,0.074579,67053.0,67052.0,0.44138]
[1729015996926,0.074579,67053.0,67052.0,0.44238]
[1729015997125,0.14333423,67059.0,67054.0,0.074576]
[1729015997328,0.074575,67056.0,67054.0,0.074576]
[1729015998633,0.074576,67055.0,67054.0,0.074576]
[1729015998833,0.074579,67053.0,67052.0,0.3638]
[1729015999031,0.074579,67053.0,67052.0,0.3608]
[1729015999729,0.074581,67051.0,67050.0,0.05848972]
[1729016000337,0.334581,67051.0,67050.0,0.05848972]
[1729016001129,0.26,67051.0,67047.0,0.074585]
[1729016001340,0.074583,67049.0,67047.0,0.074585]
[1729016001521,0.074584,67048.0,67047.0,0.074585]
[1729016001726,0.074586,67046.0,67045.0,0.3608]
[1729016002026,0.074586,67046.0,67038.0,0.0022372]
[1729016002027,0.074594,67039.0,67038.0,0.0022372]
[1729016002229,0.334594,67039.0,67038.0,0.0022372]
[1729016003533,0.334594,67039.0,67038.0,0.0042372]
[1729016003929,0.334594,67039.0,67035.0,0.074599]
[1729016003930,0.074597,67037.0,67035.0,0.0588362]
[1729016004329,0.074597,67036.0,67035.0,0.0588362]
[1729016005459,0.074602,67032.0,67031.0,0.05848972]
[1729016005642,0.074602,67032.0,67024.0,0.36196]
[1729016005643,0.074607,67027.0,67026.0,0.05848972]
[1729016005937,0.074607,67027.0,67020.0,0.07311215]
[1729016005938,0.074611,67024.0,67019.0,0.05848972]
[1729016006133,0.074611,67024.0,67023.0,0.074612]
[1729016006327,0.074611,67024.0,67018.0,0.05848972]
[1729016006530,0.334613,67022.0,67018.0,0.05848972]
[1729016006735,0.334613,67022.0,67016.0,0.49390972]
[1729016006924,0.334613,67022.0,67021.0,0.01023799]
[1729016008243,0.334613,67022.0,67021.0,0.01323799]
[1729016008426,0.334613,67022.0,67021.0,0.00523799]
[1729016008740,0.334613,67022.0,67021.0,0.01223799]
[1729016009133,0.074613,67022.0,67021.0,0.084614]
[1729016009332,0.10131872,67022.0,67021.0,0.084614]
[1729016010141,0.27131872,67022.0,67021.0,0.01]
[1729016010726,0.27131872,67022.0,67021.0,0.084614]
[1729016011636,0.27131872,67022.0,67021.0,0.01]
[1729016012026,0.27131872,67022.0,67021.0,0.084614]
[1729016012540,0.07461,67026.0,67025.0,0.074607]
[1729016012740,0.02743367,67027.0,67026.0,0.074609]
[1729016012937,0.1326,67034.0,67033.0,0.074601]
[1729016012938,0.0746,67034.0,67033.0,0.074601]
[1729016014137,0.17,67039.0,67037.0,0.074596]
[1729016014138,0.074596,67038.0,67037.0,0.074596]
[1729016015441,0.17,67039.0,67031.0,0.17]
[1729016015442,0.19671611,67039.0,67031.0,0.17]
[1729016015741,0.0746,67035.0,67034.0,0.074596]
[1729016018443,0.0746,67035.0,67034.0,0.076596]
[1729016018644,0.074596,67038.0,67037.0,0.074595]
[1729016019446,0.4188,67048.0,67036.0,0.41928972]
[1729016019447,0.17,67047.0,67036.0,0.41928972]
[1729016019649,0.074591,67042.0,67041.0,0.074592]
[1729016021745,0.074591,67042.0,67041.0,0.10094994]
[1729016022641,0.38806072,67048.0,67041.0,0.02835794]
[1729016022842,0.074581,67053.0,67052.0,0.074579]
[1729016023043,0.00223743,67059.0,67052.0,0.074579]
[1729016023044,0.00223743,67059.0,67058.0,0.074573]
[1729016023238,0.074566,67066.0,67065.0,0.074564]
[1729016023846,0.074565,67065.0,67064.0,0.3608]
[1729016024234,0.074565,67065.0,67064.0,0.435366]
[1729016024648,0.07456,67071.0,67070.0,0.074559]
[1729016025037,0.074562,67068.0,67066.0,0.04392926]
[1729016025244,0.074562,67068.0,67067.0,0.074561]
[1729016025844,0.244562,67068.0,67067.0,0.074561]
[1729016026544,0.074562,67068.0,67067.0,0.074561]
[1729016026846,0.074565,67065.0,67064.0,0.04392926]
[1729016027045,0.074565,67065.0,67064.0,0.074566]
[1729016027436,0.46181067,67074.0,67073.0,0.074556]
[1729016027643,0.074556,67074.0,67073.0,0.074556]
[1729016028751,0.074556,67074.0,67073.0,0.001]
[1729016028944,0.074556,67074.0,67073.0,0.002]
[1729016031043,0.074566,67064.0,67063.0,0.40472926]
[1729016031250,0.074569,67062.0,67057.0,0.47930226]